[Event "Romanian Superleague 2022"]
[Site "Oradea"]
[Date "2022.09.23"]
[Round "3.15"]
[White "Stepanencu, Nicodim-Cosmin"]
[Black "Secheres, Adrian-Simion"]
[Result "1/2-1/2"]
[ECO "E63"]
[WhiteElo "2289"]
[BlackElo "2375"]
[Annotator "TA"]
[PlyCount "58"]
[EventDate "2022.09.21"]
[EventType "team-tourn"]
[EventCountry "ROU"]
[SourceTitle "playchess.com"]
[Source "ChessBase"]
[SourceQuality "1"]
[TimeControl "40/5400+30:1800+30"]

{[%evp 16,58,40,49,43,35,62,52,48,53,48,64,77,61,72,70,77,83,81,72,63,31,72,67,57,22,16,20,15,0,15,0,0,0,0,0,14,0,31,8,53,56,70,67,64]} 1. Nf3 {[%emt 0:00:09]} Nf6 {[%emt 0:00:42]} 2. c4 {[%emt 0:00:06]} g6 {[%emt 0:01:11]} 3. g3 {[%emt 0:00:07]} Bg7 {[%emt 0:00:35]} 4. Bg2 {[%emt 0:00:06]} O-O {[%emt 0:00:07]} 5. Nc3 {[%emt 0:00:24]} d6 {[%emt 0:01:12]} 6. d4 {[%emt 0:00:13][%cal Bd2d4,Bd4d5][%mdl 32]} Nc6 {[%emt 0:01:32][%cal Bb8c6,Bc6a5,Ba5c4][%mdl 32]} 7. O-O {[%emt 0:00:14]} a6 {[%emt 0:00:27]} 8. b3 {[%emt 0:00:21][%cal Bb2b3,Bb3b4][%mdl 32]} Rb8 {[%emt 0:00:31]} 9. d5 {[%emt 0:00:10]} Na5 {[%emt 0:01:09] E63: King's Indian: Fianchetto: Panno Variation with 7...a6.} 10. Bg5 {[%emt 0:00:08]} b5 {[%emt 0:11:42]} 11. cxb5 {[%emt 0:00:15]} axb5 {[%emt 0:00:25]} 12. b4 {[%emt 0:00:05]} Nc4 {[%emt 0:00:40]} 13. Qb3 {[%emt 0:00:05]} h6 {[%emt 0:04:33]} 14. Bxf6 {[%emt 0:01:20]} Bxf6 {[%emt 0:00:48]} ({Less strong is} 14... exf6 {[#]} 15. Nxb5 $1 Bd7 16. Nbd4 $16 (16. Qxc4 Bxb5 17. Qc2 f5 $11)) 15. a4 {[%emt 0:00:17] [#]} e6 $146 {[%emt 0:10:08]} ({Predecessor:} 15... Nb6 16. axb5 Bd7 17. Rfd1 e6 18. dxe6 Bxe6 19. Qc2 Bf5 20. e4 Bxc3 21. Qxc3 Bxe4 {1-0 (60) Vantika,A (2210)-Arpita,M (2090) New Delhi 2018}) 16. Rac1 {[%emt 0:32:52]} exd5 {[%emt 0:08:31]} 17. Nxd5 {[%emt 0:00:09]} Be6 {[%emt 0:00:06]} 18. Nf4 {[%emt 0:03:03]} Qd7 {[%emt 0:09:02][%cal Oc4d2] [#] aiming for ...Nd2!} 19. Nxe6 {[%emt 0:16:19]} Qxe6 {[%emt 0:00:25]} 20. Rc2 {[%emt 0:08:57]} d5 {[%emt 0:05:23]} 21. a5 {[%emt 0:00:13]} c6 {[%emt 0:03:04]} 22. e3 {[%emt 0:00:49]} Rfe8 {[%emt 0:05:03]} 23. Rd1 {[%emt 0:01:57]} Rbd8 {[%emt 0:03:26]} 24. Nd4 {[%emt 0:08:47]} Qd6 {[%emt 0:07:21]} 25. Ra2 {[%emt 0:07:09]} Rd7 {[%emt 0:07:26]} 26. Qb1 {[%emt 0:08:00]} Rb8 {[%emt 0:05:02]} 27. Bf3 {[%emt 0:06:57]} Bxd4 {[%emt 0:06:22]} 28. Rxd4 {[%emt 0:00:01]} Qe5 {[%emt 0:02:05][%cal Oc4e3]} 29. Qc1 {[%emt 0:00:56]} Re7 {[%emt 0:02:43] Weighted Error Value: White=0.08 (flawless) /Black=0.11 (very precise)} 1/2-1/2

[Event "Romanian Superleague 2022"]
[Site "Oradea"]
[Date "2022.09.23"]
[Round "3.16"]
[White "Nastore, Pavel-Alexandru"]
[Black "Vajda, Albert"]
[Result "1/2-1/2"]
[ECO "B19"]
[WhiteElo "2279"]
[BlackElo "2305"]
[Annotator "TA"]
[PlyCount "80"]
[EventDate "2022.09.21"]
[EventType "team-tourn"]
[EventCountry "ROU"]
[SourceTitle "playchess.com"]
[Source "ChessBase"]
[SourceQuality "1"]
[TimeControl "40/5400+30:1800+30"]

{[%evp 23,80,26,23,16,43,52,81,44,43,0,0,0,0,0,0,0,0,0,0,0,0,0,0,0,0,0,52,0,0,0,0,0,18,15,28,18,27,0,0,0,0,0,0,0,0,-2,0,-2,0,-48,-39,-56,-9,-9,-9,-10,0,-1,-8]} 1. e4 {[%emt 0:00:06]} c6 {[%emt 0:00:07]} 2. d4 {[%emt 0:00:04]} d5 {[%emt 0:00:09]} 3. Nc3 {[%emt 0:00:03]} dxe4 {[%emt 0:00:17]} 4. Nxe4 {[%emt 0:00:04]} Bf5 {[%emt 0:00:31]} 5. Ng3 {[%emt 0:00:05]} Bg6 {[%emt 0:00:08]} 6. h4 {[%emt 0:00:05]} h6 {[%emt 0:00:18]} 7. Nf3 {[%emt 0:00:07]} Nf6 {[%emt 0:00:56]} 8. Ne5 {[%emt 0:00:10]} Bh7 {[%emt 0:00:35]} 9. Bd3 {[%emt 0:00:07]} Bxd3 {[%emt 0:02:13]} 10. Qxd3 {[%emt 0:00:08]} e6 {[%emt 0:01:37]} 11. Bd2 {[%emt 0:00:36]} Nbd7 {[%emt 0:11:08]} 12. f4 {[%emt 0:00:10][%cal Bf2f4,Bf4f5][%mdl 32]} Be7 {[%emt 0:07:07]} 13. O-O-O {[%emt 0:02:47] B19: Classical Caro-Kann: 4...Bf5 main line.} Qc7 {[%emt 0:03:06]} 14. Rhe1 {[%emt 0:02:39]} Rd8 {[%emt 0:04:47]} 15. Qf3 {[%emt 0:14:35] Threatens to win with f5. White has more active pieces. The black rooks are badly placed. White is better.} O-O $1 {[%emt 0:07:55]} 16. f5 {[%emt 0:35:23] [#] And now fxe6 would win.} Bd6 $1 {[%emt 0:03:11] [#]} 17. Nh5 $146 {[%emt 0:10:15]} ({Predecessor:} 17. fxe6 fxe6 18. Qb3 Nd5 19. Ne4 Bxe5 20. dxe5 b5 21. Qh3 Rde8 22. Nd6 Re7 23. Qg3 {1-0 (35) Al Sayed,M (2469)-Russell,M (2220) Cebu 2007}) 17... Nxh5 {[%emt 0:05:05]} (17... Bxe5 {is more complex.} 18. fxe6 Nxh5 19. dxe5 Nxe5 20. Qxh5 Rd5) 18. Nxd7 {[%emt 0:07:17]} Rxd7 {[%emt 0:04:46]} 19. fxe6 {[%emt 0:03:23]} fxe6 {[%emt 0:00:46]} 20. Qxh5 {[%emt 0:00:05]} Bf4 {[%emt 0:00:51]} 21. c3 {[%emt 0:03:24]} Rd5 {[%emt 0:14:18]} 22. Qg4 {[%emt 0:06:49]} e5 {[%emt 0:01:28]} 23. Bxf4 {[%emt 0:01:05]} exf4 {[%emt 0:00:47]} 24. Re4 {[%emt 0:04:37]} Rdf5 {[%emt 0:07:32]} ({Better is} 24... Qf7 $11) 25. Rf1 {[%emt 0:06:45]} (25. Rde1 $14 R5f7 26. Re5) 25... Qf7 $11 {[%emt 0:04:12]} 26. b3 {[%emt 0:00:14]} Rf6 {[%emt 0:00:41]} 27. Qf3 {[%emt 0:00:46]} Re8 {[%emt 0:05:57]} 28. Rfe1 {[%emt 0:00:42]} ({Don't go for} 28. Rxf4 $2 Rxf4 29. Qxf4 {[#]} Re1+ $3 {[%mdl 512]} 30. Rxe1 Qxf4+ $19) 28... Rxe4 {[%emt 0:00:16]} 29. Rxe4 {[%emt 0:00:11][%mdl 4096] Endgame KQR-KQR} a5 {[%emt 0:01:09]} 30. Kb2 {[%emt 0:01:10]} Rg6 {[%emt 0:02:00]} 31. Re5 {[%emt 0:00:05]} Rg3 {[%emt 0:01:24]} 32. Qe2 {[%emt 0:00:14]} Qg6 {[%emt 0:00:39]} 33. h5 {[%emt 0:00:05]} Qd3 {[%emt 0:02:01]} 34. Re8+ {[%emt 0:00:42]} Kh7 {[%emt 0:00:06]} 35. Qxd3+ {[%emt 0:01:37]} Rxd3 {[%emt 0:00:07] KR-KR} 36. Rf8 {[%emt 0:00:54]} (36. Re2 $11) 36... Rd2+ $15 {[%emt 0:02:29]} 37. Ka3 {[%emt 0:00:04]} Rxg2 {[%emt 0:00:08]} (37... Rf2 $1 $15) 38. Rxf4 $11 {[%emt 0:00:08] The position is equal.} Rg5 {[%emt 0:04:11]} 39. Rh4 {[%emt 0:00:00]} g6 {[%emt 0:01:20]} 40. hxg6+ {[%emt 0:00:00]} Kxg6 {[%emt 0:00:00] Weighted Error Value: White=0.08 (flawless) /Black=0.08 (flawless)} 1/2-1/2

[Event "Romanian Superleague 2022"]
[Site "Oradea"]
[Date "2022.09.23"]
[Round "3.17"]
[White "Balla, Tamas-Kristof"]
[Black "Ciorgovean, Iustin"]
[Result "0-1"]
[ECO "B30"]
[WhiteElo "2325"]
[BlackElo "2314"]
[Annotator "TA"]
[PlyCount "76"]
[EventDate "2022.09.21"]
[EventType "team-tourn"]
[EventCountry "ROU"]
[SourceTitle "playchess.com"]
[Source "ChessBase"]
[SourceQuality "1"]
[TimeControl "40/5400+30:1800+30"]

{[%evp 9,76,-3,0,-7,-10,-46,-44,-66,-74,-44,-16,-25,-16,-16,-17,-10,-8,-22,-2,-17,-8,-6,-16,-13,0,0,0,0,2,0,0,0,0,0,21,17,13,0,0,-2,-2,-35,0,-12,-12,-9,-13,-13,0,0,0,0,0,0,0,-122,-112,-215,-216,-639,-639,-1493,-200,-6170,-5600,-29968,-29967,-5783,-5735]} 1. e4 {[%emt 0:00:02]} c5 {[%emt 0:00:06]} 2. Nf3 {[%emt 0:00:06]} Nc6 {[%emt 0:00:11]} 3. c4 {[%emt 0:01:52]} e5 {[%emt 0:00:40]} 4. Nc3 {[%emt 0:00:15]} d6 {[%emt 0:04:20]} 5. d3 {[%emt 0:01:12]} f5 {[%emt 0:04:19]} 6. Nd5 {[%emt 0:02:13] B30: Sicilian: 2...Nc6 3 Bb5, lines without ...g6.} Be7 {[%emt 0:02:30]} 7. Nxe7 {[%emt 0:26:31]} Qxe7 {[%emt 0:08:25]} 8. Bg5 {[%emt 0:01:03] Black is slightly better.} Nf6 {[%emt 0:02:33] [#]} 9. Nh4 $146 {[%emt 0:03:36]} ({Predecessor:} 9. a3 O-O 10. h3 fxe4 11. dxe4 Nd4 12. Nxd4 cxd4 13. Bd3 Qf7 14. g4 Nxe4 15. Bxe4 Qxf2# {0-1 (15) Martindale,R (965)-Kelemen,G (2113) LSS email 2017}) 9... Nd4 {[%emt 0:15:34]} 10. exf5 {[%emt 0:01:42]} O-O {[%emt 0:03:09]} 11. Be2 {[%emt 0:02:40]} Bxf5 {[%emt 0:04:08]} 12. Nxf5 {[%emt 0:02:22]} Nxf5 {[%emt 0:00:13] Pair of Knights!} 13. O-O {[%emt 0:03:54]} h6 {[%emt 0:00:22]} 14. Be3 {[%emt 0:01:34]} Kh8 {[%emt 0:04:31]} 15. Bg4 {[%emt 0:08:38]} Nxg4 {[%emt 0:03:31]} 16. Qxg4 {[%emt 0:04:10]} a6 {[%emt 0:04:48]} 17. Rae1 {[%emt 0:01:29]} b5 {[%emt 0:14:15]} 18. Bd2 {[%emt 0:08:21]} bxc4 {[%emt 0:05:33]} 19. Qxc4 {[%emt 0:01:09]} Nd4 {[%emt 0:08:03]} 20. f4 {[%emt 0:10:48]} Qh4 {[%emt 0:05:58][%cal Re5f4]} 21. Be3 {[%emt 0:02:08]} Qh5 {[%emt 0:04:32] White must now prevent ...Ne2+.} 22. Bxd4 {[%emt 0:02:13]} exd4 {[%emt 0:00:55]} 23. Re6 {[%emt 0:05:19]} (23. h3 {feels hotter.} Kh7 24. Re6 Rae8 25. Rxd6 Re2 26. Qd5) 23... Rae8 {[%emt 0:01:28]} 24. Rxe8 {[%emt 0:05:37]} Qxe8 $11 {[%emt 0:00:24][%mdl 4096] Endgame KQR-KQR} 25. g3 {[%emt 0:01:12]} Qb5 {[%emt 0:01:17]} 26. Qxb5 {[%emt 0:01:11]} axb5 {[%emt 0:00:01] KR-KR} 27. Re1 {[%emt 0:00:09]} Ra8 {[%emt 0:01:25]} 28. a3 {[%emt 0:00:27]} Ra4 {[%emt 0:00:21]} 29. Re8+ {[%emt 0:02:10]} Kh7 {[%emt 0:00:00]} 30. Rb8 {[%emt 0:00:01]} c4 {[%emt 0:00:19] Strongly threatening ...c3.} 31. dxc4 {[%emt 0:01:16]} bxc4 {[%emt 0:00:49]} 32. Rd8 {[%emt 0:00:35]} (32. Rb6 $11 {remains equal.}) 32... Ra6 $1 $17 {[%emt 0:00:55]} ({But not} 32... c3 $6 33. bxc3 dxc3 34. Rxd6 $11) 33. Kf2 {[%emt 0:00:31] [#]} (33. Rb8 $17) 33... Rb6 $1 $19 {[%emt 0:00:12]} 34. Kf3 $2 {[%emt 0:00:01]} (34. Ke1) 34... Rxb2 {[%emt 0:00:57]} 35. Rxd6 {[%emt 0:00:02]} d3 {[%emt 0:00:27]} (35... Rd2 {aiming for ...c3.} 36. Rc6 c3) 36. Rc6 $2 {[%emt 0:00:21] [#]} (36. Ke3) 36... Rc2 $1 {[%emt 0:00:21] ( -> ...d2)} 37. a4 {[%emt 0:01:14]} d2 {[%emt 0:00:20]} 38. Ke2 {[%emt 0:00:50]} c3 {[%emt 0:00:09] Weighted Error Value: White=0.76/Black=0.26 (precise)} 0-1

[Event "Romanian Superleague 2022"]
[Site "Oradea"]
[Date "2022.09.23"]
[Round "3.18"]
[White "Carmaciu, Lucian-Catalin"]
[Black "Doncea, Vladimir"]
[Result "1-0"]
[ECO "D00"]
[WhiteElo "2376"]
[BlackElo "2342"]
[Annotator "TA"]
[PlyCount "69"]
[EventDate "2022.09.21"]
[EventType "team-tourn"]
[EventCountry "ROU"]
[SourceTitle "playchess.com"]
[Source "ChessBase"]
[SourceQuality "1"]
[TimeControl "40/5400+30:1800+30"]

{[%evp 9,69,-4,25,0,58,2,0,-26,-33,-25,-5,-3,-10,-8,0,0,12,0,19,7,22,19,55,41,54,18,7,8,57,50,129,119,118,127,117,99,112,105,122,134,209,200,206,194,347,310,350,343,306,294,439,420,458,462,483,396,712,699,672,671,776,762]} 1. d4 {[%emt 0:00:09]} d5 {[%emt 0:00:13]} 2. Bf4 {[%emt 0:00:13]} c5 {[%emt 0:00:59]} 3. e3 {[%emt 0:00:05]} Nf6 {[%emt 0:00:10]} 4. c3 {[%emt 0:00:17]} Nc6 {[%emt 0:00:33]} 5. Nd2 {[%emt 0:00:16]} g6 {[%emt 0:00:31]} 6. Ngf3 {[%emt 0:01:39] D00: 1 d4 d5: Unusual lines.} Bg7 {[%emt 0:01:22]} (6... Qb6 $11) 7. Be2 {[%emt 0:02:28]} (7. dxc5 $14 O-O 8. h3) 7... Nh5 $11 {[%emt 0:03:21] [#]} 8. Be5 $146 {[%emt 0:13:12] The position is equal.} (8. dxc5 $5 {[%cal Rf4g5]} Nxf4 9. exf4 $11) ({Predecessor:} 8. Bg5 h6 9. Bh4 g5 10. Bg3 Nxg3 11. hxg3 Qd6 12. Qc2 Bd7 13. Nb3 b6 14. dxc5 bxc5 {1-0 (49) Burmakin,V (2594)-Antoli Royo,J (2435) La Roda 2011}) 8... f6 {[%emt 0:08:27]} 9. Bg3 {[%emt 0:00:05]} Nxg3 {[%emt 0:00:06]} 10. hxg3 {[%emt 0:00:04]} cxd4 {[%emt 0:00:08]} 11. cxd4 {[%emt 0:01:38]} Qb6 {[%emt 0:05:08]} 12. Qb3 {[%emt 0:03:52]} Be6 {[%emt 0:00:42]} 13. a3 {[%emt 0:07:09]} Rc8 {[%emt 0:06:17]} 14. O-O {[%emt 0:11:10]} Kf7 {[%emt 0:04:05]} 15. Rfc1 {[%emt 0:03:26]} g5 {[%emt 0:01:22]} 16. Ne1 {[%emt 0:07:06][%cal Bf3e1,Be1d3,Bd3b4,Bb4c6][%mdl 32]} h5 {[%emt 0:00:19]} 17. Nd3 {[%emt 0:02:04]} Qxb3 {[%emt 0:05:34]} 18. Nxb3 {[%emt 0:00:05]} b6 {[%emt 0:00:06] Prevents Ndc5.} (18... Bg4 $11 19. Bxg4 hxg4) 19. Nb4 $14 {[%emt 0:06:00]} Na5 {[%emt 0:06:58] White leaves nothing to chance now.} ({Black should try} 19... Nxb4 $14 20. axb4 Rxc1+ 21. Nxc1 g4) 20. Nxa5 $16 {[%emt 0:06:49]} (20. Rxc8 Rxc8 21. Nxa5 (21. Bxh5+ Kg8 $16) 21... bxa5) 20... bxa5 {[%emt 0:00:06]} 21. Nc6 {[%emt 0:00:50]} h4 {[%emt 0:00:39]} 22. Nxa5 {[%emt 0:04:36] White is more active.} hxg3 {[%emt 0:02:25]} 23. fxg3 {[%emt 0:00:09]} Rxc1+ {[%emt 0:03:12]} 24. Rxc1 {[%emt 0:01:32]} Rd8 {[%emt 0:02:35]} (24... Rc8 $16 25. Rxc8 Bxc8) 25. b4 {[%emt 0:03:01]} f5 {[%emt 0:00:21]} 26. Nc6 {[%emt 0:01:23]} Rd7 {[%emt 0:00:21] [#]} (26... Ra8 {was called for.} 27. Ba6 Bd7) 27. Rc5 {[%emt 0:00:06]} Kg6 {[%emt 0:02:07]} 28. Ra5 {[%emt 0:04:01]} f4 {[%emt 0:00:08]} 29. Kf2 {[%emt 0:01:30]} (29. exf4 gxf4 30. gxf4 Kf5 $16) (29. Nxa7 Rc7 $16) (29. gxf4 $6 gxf4 30. Kf2 (30. exf4 Kf5 $16) (30. Nxa7 fxe3 31. Nc6 Kg5 $16) 30... fxe3+ 31. Kxe3 Bh6+ 32. Kf2 Bg7 $18) 29... fxe3+ {[%emt 0:00:08]} (29... Kf5 $142 30. Bd3+ (30. Rxa7 Ke4 $11) 30... Kg4 31. gxf4 (31. Rxa7 Rxa7 32. Nxa7 fxe3+ 33. Kxe3 Kxg3 $18) (31. Nxa7 fxe3+ 32. Kxe3 Kxg3 $14) 31... gxf4 32. Rxa7 (32. Nxa7 Rc7 $16) 32... fxe3+ 33. Kxe3 Bh6+ 34. Kf2 Rxa7 35. Nxa7 Bd7) 30. Kxe3 $18 {[%emt 0:00:04]} Rd6 {[%emt 0:00:25]} 31. Ra6 {[%emt 0:04:05]} ({Not} 31. Nxe7+ Kf6 $14) 31... Kf7 {[%emt 0:07:34]} 32. Nxa7 {[%emt 0:00:18]} Rd7 $2 {[%emt 0:00:03] [#]} (32... Rxa6 33. Bxa6 Bd7) 33. Nc6 {[%emt 0:02:22] White is clearly winning.} Bf5 {[%emt 0:00:35]} 34. b5 {[%emt 0:01:38]} Rd6 {[%emt 0:01:15]} 35. Bh5+ {[%emt 0:02:54] Weighted Error Value: White=0.16 (very precise) /Black=0.32} 1-0

[Event "Romanian Superleague 2022"]
[Site "Oradea"]
[Date "2022.09.23"]
[Round "3.19"]
[White "Kozak, Adam"]
[Black "Nguyen, Thai Dai Van"]
[Result "1/2-1/2"]
[ECO "D41"]
[WhiteElo "2516"]
[BlackElo "2627"]
[Annotator "TA"]
[PlyCount "38"]
[EventDate "2022.09.21"]
[EventType "team-tourn"]
[EventCountry "ROU"]
[SourceTitle "playchess.com"]
[Source "ChessBase"]
[SourceQuality "1"]
[TimeControl "40/5400+30:1800+30"]

{[%evp 14,38,8,14,8,25,25,14,22,18,34,0,4,0,0,0,0,0,0,0,0,0,0,0,8,12,16]} 1. d4 {[%emt 0:00:02]} Nf6 {[%emt 0:00:42]} 2. c4 {[%emt 0:00:33]} e6 {[%emt 0:00:20]} 3. Nc3 {[%emt 0:00:08]} d5 {[%emt 0:01:09]} 4. cxd5 {[%emt 0:00:10]} Nxd5 {[%emt 0:00:08]} 5. Nf3 {[%emt 0:02:54]} c5 {[%emt 0:00:50]} 6. g3 {[%emt 0:01:26]} Nxc3 {[%emt 0:00:18]} 7. bxc3 {[%emt 0:00:08]} cxd4 {[%emt 0:00:04]} 8. cxd4 {[%emt 0:00:45]} Bb4+ {[%emt 0:00:16] D41: Queen's Gambit Declined: Semi-Tarrasch with 5 cxd5.} 9. Bd2 {[%emt 0:00:10]} Bxd2+ {[%emt 0:00:04]} 10. Qxd2 {[%emt 0:00:07]} b6 {[%emt 0:00:06]} 11. Bg2 {[%emt 0:01:11]} Bb7 {[%emt 0:00:08]} 12. Qc2 {[%emt 0:04:06] [#]} Nc6 $146 {[%emt 0:11:01] The position is equal.} ({Predecessor:} 12... Nd7 13. O-O Rc8 14. Qa4 a6 15. Ne5 b5 16. Qa3 Bxg2 17. Kxg2 Nxe5 18. dxe5 Qd5+ {½-½ (54) Kozak,A (2535)-Druska,J (2506) Corte 2022}) 13. Qa4 {[%emt 0:14:16]} O-O {[%emt 0:04:27][%cal Oc6d4]} 14. O-O {[%emt 0:00:59]} Na5 {[%emt 0:07:40]} 15. Rfc1 {[%emt 0:04:15]} Rc8 {[%emt 0:10:08]} 16. Ne5 {[%emt 0:09:18] [#] And now Bxb7 would win.} Bxg2 {[%emt 0:01:29]} 17. Kxg2 {[%emt 0:00:13]} Qd5+ {[%emt 0:02:39]} 18. Kg1 {[%emt 0:01:51]} Rfd8 {[%emt 0:10:14]} 19. e3 {[%emt 0:01:43]} Qd6 {[%emt 0:00:27] An interesting draw.  Weighted Error Value: White=0.04 (flawless) /Black=0.01 (flawless)} 1/2-1/2

[Event "Romanian Superleague 2022"]
[Site "Oradea"]
[Date "2022.09.23"]
[Round "3.20"]
[White "Nisipeanu, Liviu-Dieter"]
[Black "Petkov, Momchil"]
[Result "1/2-1/2"]
[ECO "B90"]
[WhiteElo "2633"]
[BlackElo "2511"]
[Annotator "TA"]
[PlyCount "119"]
[EventDate "2022.09.21"]
[EventType "team-tourn"]
[EventCountry "ROU"]
[SourceTitle "playchess.com"]
[Source "ChessBase"]
[SourceQuality "1"]
[TimeControl "40/5400+30:1800+30"]

{[%evp 15,119,8,41,29,23,35,28,27,27,30,46,19,22,23,20,39,56,42,52,36,44,46,58,33,43,32,53,46,48,41,108,89,171,164,162,106,118,124,127,64,50,61,79,69,77,53,50,59,69,0,139,-50,-75,-94,-77,-116,-116,-300,-272,-288,-274,-283,-99,-107,0,-275,-275,-275,-275,-253,-225,-239,-229,-181,-161,-278,-273,-12832,-12833,-12834,-12832,-12832,-12833,-12828,0,0,0,0,0,0,0,0,0,0,0,0,0,0,0,0,0,0,0,0,0,0]} 1. e4 {[%emt 0:00:20]} c5 {[%emt 0:00:17]} 2. Nf3 {[%emt 0:00:05]} d6 {[%emt 0:00:06]} 3. d4 {[%emt 0:00:05]} cxd4 {[%emt 0:00:08]} 4. Nxd4 {[%emt 0:00:04]} Nf6 {[%emt 0:00:11]} 5. Nc3 {[%emt 0:00:06]} a6 {[%emt 0:00:16]} 6. Be3 {[%emt 0:00:11]} e5 {[%emt 0:00:22]} 7. Nf3 {[%emt 0:00:06]} Be7 {[%emt 0:00:30]} 8. Bc4 {[%emt 0:00:11]} Be6 {[%emt 0:00:15]} 9. Bxe6 {[%emt 0:01:08] B90: Sicilian Najdorf: Unusual White 6th moves, 6 Be3 Ng4 and 6 Be3 e5.} fxe6 {[%emt 0:00:07]} 10. Ng5 {[%emt 0:00:03]} Qd7 {[%emt 0:00:14]} 11. Qf3 {[%emt 0:00:08] White has an edge.} Nc6 {[%emt 0:01:13]} 12. Qh3 {[%emt 0:05:15]} Nd8 $1 {[%emt 0:00:14]} 13. Bb6 {[%emt 0:05:23]} h6 $1 {[%emt 0:00:59]} 14. O-O-O {[%emt 0:00:34]} O-O {[%emt 0:00:16]} 15. Bxd8 {[%emt 0:00:07]} hxg5 {[%emt 0:00:07]} 16. Bxe7 {[%emt 0:00:04]} Qxe7 {[%emt 0:00:05] [#]} 17. Rd2 $146 {[%emt 0:01:03]} ({Predecessor:} 17. Qg3 b5 18. f3 g4 19. Rhe1 gxf3 20. Qxf3 Rac8 21. Qd3 Rfd8 22. Kb1 Rc4 23. a4 {0-1 (48) Studer,N (2573)-Keymer,V (2568) Karlsruhe 2020}) 17... b5 {[%emt 0:06:26]} 18. Qe3 {[%emt 0:01:12]} b4 {[%emt 0:29:40]} 19. Na4 {[%emt 0:09:04]} Rac8 {[%emt 0:10:09]} 20. h3 {[%emt 0:21:15]} Qe8 {[%emt 0:15:14]} 21. b3 {[%emt 0:03:13]} (21. Nb6 Rd8 22. f3 Qc6 $11) 21... Qg6 {[%emt 0:01:15]} 22. f3 {[%emt 0:02:05]} Rc6 {[%emt 0:03:37] Prevents Qb6.} (22... d5 $1 $14) 23. Nb2 $1 $16 {[%emt 0:07:54] aiming for Nc4.} Rfc8 {[%emt 0:10:17]} (23... d5 $16 {might work better.}) 24. Nc4 $18 {[%emt 0:04:17]} Ne8 {[%emt 0:00:04]} 25. Rhd1 {[%emt 0:11:46]} ({Better is} 25. h4 $1 $18 {[%cal Rh4g5]}) 25... Qf6 {[%emt 0:00:25]} 26. Qa7 {[%emt 0:00:43]} Qd8 {[%emt 0:04:58]} 27. Qb7 {[%emt 0:04:40] White is much more active. The black rooks are badly placed.} (27. Nxe5 $2 Qf6 28. Qd4 Qxe5 $19) (27. Kb1 $16) 27... a5 $1 $14 {[%emt 0:00:53]} 28. Kb1 {[%emt 0:00:19]} (28. Nxe5 $2 Qf6 $1 29. c4 Qxe5 $19) 28... R8c7 {[%emt 0:07:23]} 29. Qb5 {[%emt 0:00:27]} Qc8 $1 {[%emt 0:02:57]} 30. Qxa5 {[%emt 0:08:25][%cal Rc4d6]} Kh7 $1 {[%emt 0:00:11]} 31. Rd3 {[%emt 0:05:42]} (31. Qxb4 Rxc4 32. bxc4 Rb7 $11) (31. Nxd6 Nxd6 32. Rxd6 Rxd6 33. Rxd6 Rxc2 34. Qxb4 Rc1+ 35. Kb2 Qc2+ 36. Ka3 Ra1 $15) 31... Qb8 {[%emt 0:01:55] ...Ra7 is the strong threat.} 32. Nxd6 {[%emt 0:03:45]} (32. a3 $1 $14 bxa3 33. Ne3) 32... Rc5 {[%emt 0:02:36]} (32... Nxd6 $11 {keeps the balance.} 33. Rxd6 Rxc2) 33. Qa4 $2 {[%emt 0:04:57]} (33. Qa6 $16) 33... Nxd6 $15 {[%emt 0:00:47]} 34. Rxd6 {[%emt 0:00:04] Hoping for Rd8.} Rxc2 {[%emt 0:00:03]} 35. Qa6 {[%emt 0:00:50] [#]} ({Don't go for} 35. Rxe6 $2 Qd8 $19) 35... Ra7 $1 {[%emt 0:01:37]} 36. Rd8 $2 {[%emt 0:02:22]} (36. Kxc2 $2 {loses.} Rxa6 37. Rxa6 Qc8+ 38. Kb1 Qxa6 $19) (36. Qxa7 $17 Qxa7 37. Kxc2 Qxa2+ 38. Kd3) 36... Rxa6 $19 {[%emt 0:00:58]} 37. Rxb8 {[%emt 0:00:06]} Raxa2 {[%emt 0:01:11] White must now prevent ...Rcb2+.} 38. Rxb4 {[%emt 0:00:28][%mdl 4096] Endgame KRR-KRR} Rab2+ $2 {[%emt 0:00:17]} (38... Rcb2+ $19 {has better winning chances.} 39. Kc1 Rxg2) 39. Ka1 $17 {[%emt 0:00:04]} Ra2+ $2 {[%emt 0:00:03]} (39... Rxg2 $17 40. Rb6 Ra2+ 41. Kb1 Raf2) 40. Kb1 $19 {[%emt 0:00:00]} Rcb2+ {[%emt 0:00:00]} 41. Kc1 {[%emt 0:00:18]} Rxg2 {[%emt 0:00:22][%cal Ra2a1]} 42. Kb1 {[%emt 0:00:19] Inhibits Ra1+.} Rgb2+ {[%emt 0:00:49]} 43. Kc1 {[%emt 0:00:10]} Rh2 {[%emt 0:00:32][%cal Ra2a1]} 44. Kb1 {[%emt 0:00:15] Against Ra1+} Raf2 {[%emt 0:02:43]} 45. Rb6 {[%emt 0:01:06]} (45. Rb5 $142) 45... Rxf3 {[%emt 0:02:21]} ({And not} 45... Rxh3 46. Rg1 $17) 46. Rxe6 $2 {[%emt 0:05:42]} (46. Rg1 Rhxh3 47. Kb2) 46... Rxb3+ {[%emt 0:00:46]} 47. Kc1 {[%emt 0:00:06]} Rc3+ {[%emt 0:13:26]} 48. Kb1 {[%emt 0:00:06]} Rcxh3 {[%emt 0:01:19]} 49. Rxe5 {[%emt 0:00:18]} Rh1 $2 {[%emt 0:04:14]} ({Black should try} 49... Rb3+ $19 50. Kc1 Rc3+ 51. Kb1 Rg3) 50. Rxh1 $11 {[%emt 0:03:09] The position is equal.} Rxh1+ {[%emt 0:00:04] KR-KR} 51. Kc2 {[%emt 0:00:05]} Kg6 {[%emt 0:00:59]} 52. Kd2 {[%emt 0:04:05]} Rf1 {[%emt 0:00:13]} 53. Ke2 {[%emt 0:00:17]} Rf7 {[%emt 0:02:49]} 54. Ra5 {[%emt 0:01:43]} g4 {[%emt 0:02:03]} 55. e5 {[%emt 0:02:31]} Rf5 {[%emt 0:04:34]} 56. Ra3 {[%emt 0:02:34]} Rxe5+ {[%emt 0:00:11]} 57. Kf2 {[%emt 0:00:05]} Kg5 {[%emt 0:00:08]} 58. Kg3 {[%emt 0:00:24]} Rf5 {[%emt 0:00:07][%cal Of5f3] Strongly threatening ...Rf3+!} 59. Ra8 {[%emt 0:00:06]} Rf3+ {[%emt 0:00:08]} 60. Kg2 {[%emt 0:00:04] What a bad dream for Black.  Weighted Error Value: White=0.36/Black=0.21 (precise)} 1/2-1/2